bitfinex/quotes_SOLUSD_20241225
["timestamp","ask_amount","ask_price","bid_price","bid_amount"]
[1735143534143,23.776884,196.96,196.89,13.07063579]
[1735143534306,0.2588,196.95,196.89,13.07063579]
[1735143540108,24.035684,196.96,196.89,13.07063579]
[1735143540816,13.07063579,196.95,196.87,13.07063579]
[1735143541012,24.035684,196.94,196.87,13.07063579]
[1735143541908,24.035684,196.94,196.88,13.07063579]
[1735143542112,0.2588,196.94,196.88,13.07063579]
[1735143543225,0.2588,196.94,196.9,13.07063579]
[1735143543419,24.035684,196.95,196.9,13.07063579]
[1735143544325,0.2588,196.94,196.9,13.07063579]
[1735143544915,23.776884,196.95,196.9,13.07063579]
[1735143545404,23.776884,196.95,196.92,13.07063579]
[1735143546204,0.2588,196.99,196.92,13.07063579]
[1735143546624,0.2588,197.0,196.92,13.07063579]
[1735143547027,0.2588,197.0,196.94,13.07063579]
[1735143548101,24.035684,197.0,196.94,13.07063579]
[1735143548307,13.32943579,197.04,196.96,13.07063579]
[1735143549706,23.776884,197.03,196.96,13.07063579]
[1735143549908,0.2588,197.02,196.96,13.07063579]
[1735143550412,24.035684,197.03,196.98,13.07063579]
[1735143550607,0.2588,197.03,196.98,13.07063579]
[1735143550822,1.6526,197.05,196.98,13.07063579]
[1735143550823,1.9114,197.05,196.98,13.07063579]
[1735143551019,0.2588,197.07,197.02,13.07063579]
[1735143551349,0.2588,197.08,197.02,13.07063579]
[1735143551524,0.2588,197.08,197.03,13.07063579]
[1735143552241,0.2588,197.09,197.03,13.07063579]
[1735143552631,23.776884,197.08,197.01,13.07063579]
[1735143552845,0.2588,197.07,197.01,13.07063579]
[1735143554402,13.32943579,197.07,196.99,13.07063579]
[1735143554606,23.776884,197.06,196.99,13.07063579]
[1735143554913,13.32943579,197.05,196.97,13.07063579]
[1735143555113,23.776884,197.04,196.97,13.07063579]
[1735143555433,24.035684,197.04,196.99,13.07063579]
[1735143555925,23.776884,197.04,196.99,13.07063579]
[1735143557235,23.776884,197.04,197.01,13.07063579]
[1735143557420,0.2588,197.08,197.03,13.07063579]
[1735143557728,0.2588,197.09,197.03,13.07063579]
[1735143558621,0.2588,197.1,197.03,13.07063579]
[1735143559019,24.035684,197.1,197.03,13.07063579]
[1735143559619,24.035684,197.1,196.93,55.3894]
[1735143559620,23.776884,197.06,196.97,20.0]
[1735143559933,0.2588,197.05,196.98,13.07063579]
[1735143560335,0.2588,197.05,197.0,13.07063579]
[1735143561315,23.776884,197.04,196.96,13.07063579]
[1735143561510,23.776884,197.04,196.92,13.07063579]
[1735143561511,13.07063579,196.99,196.92,13.07063579]
[1735143561710,13.07063579,196.93,196.83,0.76165655]
[1735143562045,13.07063579,196.93,196.81,1.6127]
[1735143562046,23.776884,196.93,196.81,1.6127]
[1735143562216,24.035684,196.93,196.87,13.07063579]
[1735143563640,24.035684,196.93,196.88,13.07063579]
[1735143563830,0.2588,196.92,196.88,13.07063579]
[1735143564152,23.776884,196.93,196.88,13.07063579]
[1735143564339,0.2588,196.92,196.88,13.07063579]
[1735143566040,0.2588,196.92,196.86,13.07063579]
[1735143566234,0.2588,196.92,196.79,12.7033]
[1735143566235,13.07063579,196.91,196.79,12.7033]
[1735143566441,24.035684,196.9,196.82,13.07063579]
[1735143567014,24.035684,196.9,196.76,1.5357]
[1735143567231,13.07063579,196.86,196.76,1.5357]
[1735143567416,24.035684,196.85,196.79,13.07063579]
[1735143568219,13.07063579,196.82,196.71,1.5357]
[1735143568423,0.2588,196.81,196.77,13.07063579]
[1735143568638,1.5847,196.87,196.71,2.29797702]
[1735143568639,24.035684,196.84,196.71,2.29797702]
[1735143568826,1.8435,196.87,196.8,13.07063579]
[1735143569016,36.84751979,196.86,196.78,13.07063579]
[1735143569225,13.07063579,196.84,196.71,2.29789428]
[1735143569437,0.2588,196.83,196.78,13.07063579]
[1735143569626,13.32943579,196.85,196.78,13.07063579]
[1735143570137,23.776884,196.84,196.78,13.07063579]
[1735143570328,13.32943579,196.83,196.76,13.07063579]
[1735143570634,23.776884,196.82,196.76,13.07063579]
[1735143570827,0.2588,196.81,196.74,13.07063579]
[1735143571435,13.32943579,196.81,196.74,13.07063579]
[1735143571630,23.776884,196.78,196.71,13.07063579]
[1735143571831,23.776884,196.78,196.73,13.07063579]
[1735143572020,24.035684,196.79,196.73,13.07063579]
[1735143572919,0.2588,196.79,196.73,13.07063579]
[1735143573140,24.035684,196.8,196.68,0.76237045]
[1735143573439,24.035684,196.8,196.72,13.07063579]
[1735143573645,24.035684,196.8,196.74,13.07063579]
[1735143574220,23.776884,196.8,196.74,13.07063579]
[1735143574421,0.2588,196.79,196.74,13.07063579]
[1735143575932,24.035684,196.82,196.74,13.07063579]
[1735143576631,24.035684,196.82,196.76,13.07063579]
[1735143577642,0.2588,196.82,196.76,13.07063579]
[1735143578045,24.035684,196.82,196.76,13.07063579]
[1735143578818,23.776884,196.82,196.71,20.0]
[1735143579022,23.776884,196.82,196.76,13.07063579]
[1735143579223,0.2588,196.81,196.76,13.07063579]
[1735143579930,24.035684,196.84,196.78,13.07063579]
[1735143581663,24.035684,196.86,196.8,13.07063579]
[1735143582150,0.2588,196.86,196.8,13.07063579]
[1735143582625,24.035684,196.86,196.8,13.07063579]
[1735143583127,0.2588,196.86,196.8,13.07063579]
[1735143583529,24.035684,196.88,196.8,13.07063579]
[1735143583729,0.2588,196.88,196.8,13.07063579]
[1735143583931,0.2588,196.88,196.82,13.07063579]
[1735143584250,24.035684,196.88,196.8,13.07063579]
[1735143585544,24.035684,196.88,196.75,12.706]
[1735143585545,0.2588,196.88,196.82,13.07063579]
[1735143585932,0.2588,196.88,196.75,13.46811886]
[1735143586134,0.2588,196.88,196.8,13.07063579]
[1735143586341,13.07063579,196.86,196.78,13.07063579]
[1735143586540,0.2588,196.85,196.78,13.07063579]
[1735143587641,24.035684,196.85,196.78,13.07063579]
[1735143588549,37.10631979,196.85,196.78,13.07063579]
[1735143590259,37.10631979,196.85,196.77,13.07063579]
[1735143590556,23.776884,196.8,196.73,13.07063579]
[1735143590756,0.2588,196.79,196.72,13.07063579]
[1735143591343,13.32943579,196.79,196.72,13.07063579]
[1735143591661,0.2588,196.79,196.72,13.07063579]
[1735143593459,23.776884,196.77,196.65,1.5581]
[1735143593665,0.2588,196.76,196.7,13.07063579]
[1735143593861,0.2588,196.76,196.72,13.07063579]
[1735143594050,24.035684,196.79,196.74,13.07063579]
[1735143595744,24.035684,196.79,196.72,13.07063579]
[1735143596764,24.035684,196.79,196.71,13.07063579]
[1735143596765,23.776884,196.77,196.71,13.07063579]
[1735143597065,0.2588,196.76,196.69,13.07063579]
[1735143597266,0.2588,196.76,196.7,13.07063579]
[1735143597564,0.2588,196.76,196.71,13.07063579]
[1735143597772,0.2588,196.76,196.7,13.07063579]
[1735143597957,36.84751979,196.73,196.6,1.6045]
[1735143598159,37.10631979,196.72,196.65,13.07063579]
[1735143598464,13.07063579,196.71,196.64,13.07063579]
[1735143598670,24.035684,196.7,196.64,13.07063579]
[1735143599147,1.6519,196.69,196.57,0.7627932]
[1735143599355,24.035684,196.68,196.61,13.07063579]
[1735143599670,24.035684,196.68,196.62,13.07063579]
[1735143600164,0.2588,196.68,196.62,13.07063579]
[1735143600467,6.2186,196.73,196.67,13.07063579]
[1735143600647,0.2588,196.73,196.69,13.07063579]
[1735143600846,0.2588,196.75,196.69,13.07063579]
[1735143601263,0.2588,196.75,196.7,13.07063579]
[1735143601648,0.2588,196.77,196.71,13.07063579]
[1735143601846,0.2588,196.77,196.62,31.6045]
[1735143601847,0.2588,196.78,196.73,13.07063579]
[1735143602048,0.2588,196.79,196.74,13.07063579]
[1735143602554,0.2588,196.79,196.75,13.07063579]
[1735143603060,0.2588,196.81,196.75,13.07063579]
[1735143603643,13.07063579,196.76,196.61,1.6045]
[1735143603850,0.2588,196.75,196.67,13.07063579]
[1735143604250,0.2588,196.75,196.69,13.07063579]
[1735143607549,13.07063579,196.74,196.67,13.07063579]
[1735143607749,0.2588,196.73,196.67,13.07063579]
[1735143608151,13.07063579,196.71,196.61,1.6045]
[1735143608344,13.07063579,196.69,196.56,1.6209]
[1735143608659,0.2588,196.68,196.61,13.07063579]
[1735143609667,23.776884,196.66,196.61,13.07063579]
[1735143609868,0.2588,196.65,196.61,13.07063579]
[1735143610474,0.2588,196.65,196.59,13.07063579]
[1735143611355,0.2588,196.66,196.59,13.07063579]
[1735143611553,0.2588,196.66,196.61,13.07063579]
[1735143611760,0.2588,196.68,196.63,13.07063579]
[1735143611961,0.2588,196.7,196.63,13.07063579]
[1735143612162,0.2588,196.7,196.65,13.07063579]
[1735143612356,1.5515,196.76,196.69,13.07063579]
[1735143612562,1.5515,196.76,196.6,30.0]
[1735143612563,0.2588,196.78,196.72,13.07063579]
[1735143612776,0.2588,196.79,196.74,13.07063579]
[1735143613078,0.2588,196.79,196.73,13.07063579]
[1735143613466,1.5846,196.83,196.76,13.07063579]
[1735143613657,0.2588,196.82,196.76,13.07063579]
[1735143613857,0.2588,196.83,196.76,13.07063579]
[1735143614053,0.2588,196.83,196.78,13.07063579]
[1735143614856,13.07063579,196.82,196.75,13.07063579]
[1735143615070,0.2588,196.81,196.73,13.07063579]
[1735143615271,23.776884,196.79,196.73,13.07063579]
[1735143615473,0.2588,196.78,196.73,13.07063579]
[1735143616275,0.2588,196.78,196.53,12.39562465]
[1735143616276,13.07063579,196.76,196.69,13.07063579]
[1735143616477,0.2588,196.75,196.68,13.07063579]
[1735143617583,0.2588,196.78,196.72,13.07063579]
[1735143618478,13.32943579,196.78,196.72,13.07063579]
[1735143618662,13.32943579,196.78,196.7,13.07063579]
[1735143619086,6.1094,196.84,196.75,13.07063579]
[1735143619304,0.2588,196.86,196.79,13.07063579]
[1735143620080,7.84337047,196.87,196.81,13.07063579]
[1735143620273,7.84337047,196.87,196.75,0.76209489]
[1735143620462,7.84337047,196.87,196.83,13.07063579]
[1735143620665,0.2588,196.88,196.83,13.07063579]
[1735143621290,0.2588,196.9,196.83,13.07063579]
[1735143621584,13.07063579,196.87,196.79,13.07063579]
[1735143621884,0.2588,196.86,196.79,13.07063579]
[1735143622082,0.2588,196.86,196.81,13.07063579]
[1735143622269,0.2588,196.88,196.81,13.07063579]
[1735143622585,24.035684,196.88,196.81,13.07063579]
[1735143623184,13.07063579,196.87,196.79,13.07063579]
[1735143623394,0.2588,196.86,196.79,13.07063579]
[1735143623685,24.035684,196.86,196.79,13.07063579]
[1735143623887,1.8434,196.93,196.85,13.07063579]
[1735143624082,0.2588,196.93,196.87,13.07063579]
[1735143624875,0.2588,196.93,196.85,13.07063579]
[1735143625073,13.07063579,196.92,196.83,13.07063579]
[1735143625284,13.07063579,196.9,196.81,13.07063579]
[1735143625479,13.07063579,196.86,196.79,13.07063579]
[1735143625674,0.2588,196.85,196.79,13.07063579]
[1735143625871,0.2588,196.85,196.72,6.514]
[1735143625872,0.2588,196.85,196.77,13.07063579]
[1735143626365,13.07063579,196.84,196.77,13.07063579]
[1735143626671,0.2588,196.83,196.77,13.07063579]
[1735143627580,24.035684,196.83,196.77,13.07063579]
[1735143628084,24.035684,196.83,196.75,13.07063579]
[1735143628286,24.035684,196.83,196.73,13.07063579]
[1735143628287,23.776884,196.81,196.73,13.07063579]
[1735143628476,0.2588,196.8,196.73,13.07063579]
[1735143628972,0.2588,196.8,196.75,13.07063579]
[1735143632397,35.26,196.91,196.68,13.83299549]
[1735143632398,12.9581,196.87,196.79,13.07063579]
[1735143632597,0.2588,196.87,196.82,13.07063579]
[1735143632766,0.2588,196.87,196.77,1.5619]
[1735143632974,13.32943579,196.88,196.8,13.07063579]
[1735143634173,23.776884,196.87,196.8,13.07063579]
[1735143634376,36.84751979,196.85,196.77,13.07063579]
[1735143634575,23.776884,196.83,196.76,13.07063579]
[1735143634788,0.2588,196.82,196.76,13.07063579]
[1735143637504,0.2588,196.82,196.78,13.07063579]
[1735143637715,0.2588,196.83,196.78,13.07063579]
[1735143638091,24.035684,196.85,196.78,13.07063579]
[1735143638406,0.2588,196.85,196.8,13.07063579]
[1735143639771,23.776884,196.83,196.72,6.3828]
[1735143639979,13.07063579,196.81,196.74,13.07063579]
[1735143640282,13.07063579,196.77,196.7,13.07063579]
[1735143640478,24.035684,196.76,196.69,13.07063579]
[1735143640676,24.035684,196.76,196.7,13.07063579]
[1735143641088,0.2588,196.76,196.7,13.07063579]
[1735143644783,13.32943579,196.76,196.68,13.07063579]
[1735143645102,23.776884,196.75,196.68,13.07063579]
[1735143645295,0.2588,196.74,196.68,13.07063579]
[1735143648117,0.2588,196.74,196.7,13.07063579]
[1735143648290,0.2588,196.8,196.72,13.07063579]
[1735143648605,13.32943579,196.8,196.72,13.07063579]
[1735143648995,13.07063579,196.79,196.72,13.07063579]
[1735143649196,0.2588,196.78,196.72,13.07063579]
[1735143651497,0.2588,196.78,196.7,13.07063579]
[1735143651498,37.10631979,196.78,196.7,13.07063579]
[1735143652102,37.10631979,196.78,171.82,1.0]
[1735143652103,13.07063579,196.73,196.59,1.604]
[1735143652307,13.07063579,196.71,196.64,13.07063579]
[1735143652614,0.2588,196.7,196.64,13.07063579]
[1735143652790,24.035684,196.72,196.64,13.07063579]
[1735143652991,24.035684,196.72,196.59,1.604]
[1735143652992,24.035684,196.72,196.66,13.07063579]
[1735143653715,24.035684,196.72,196.59,1.604]
[1735143653913,24.035684,196.72,196.64,13.07063579]
[1735143654231,13.07063579,196.71,196.64,13.07063579]
[1735143654509,24.035684,196.7,196.64,13.07063579]
[1735143654714,24.035684,196.7,196.56,0.76274502]
[1735143654910,24.035684,196.7,196.51,12.7219]
[1735143654911,19.19553579,196.65,196.51,12.7219]
[1735143655099,0.2588,196.64,196.57,13.07063579]
[1735143655816,37.10631979,196.64,196.57,13.07063579]
[1735143657817,37.10631979,196.64,196.56,13.07063579]
[1735143658002,37.10631979,196.64,196.57,13.07063579]
[1735143658605,37.10631979,196.64,196.56,13.07063579]
[1735143658820,37.10631979,196.64,196.57,13.07063579]
[1735143659015,24.035684,196.64,196.57,13.07063579]
[1735143659221,24.035684,196.64,196.58,13.07063579]
[1735143659607,24.035684,196.64,196.59,13.07063579]
[1735143660209,0.2588,196.64,196.61,13.07063579]
[1735143660406,13.07063579,196.67,196.59,13.07063579]
[1735143660611,37.10631979,196.66,196.58,13.07063579]
[1735143660810,37.10631979,196.66,196.59,13.07063579]
[1735143661509,37.10631979,196.66,196.58,13.07063579]
[1735143663424,0.2588,196.72,196.6,1.662]
[1735143663607,13.07063579,196.71,196.63,13.07063579]
[1735143663806,0.2588,196.7,196.63,13.07063579]
[1735143664297,13.07063579,196.69,196.62,13.07063579]
[1735143664502,13.32943579,196.68,196.6,13.07063579]
[1735143664710,13.07063579,196.67,196.6,13.07063579]
[1735143664908,0.2588,196.66,196.6,13.07063579]
[1735143666826,24.035684,196.66,196.6,13.07063579]
[1735143668130,37.10631979,196.66,196.58,13.07063579]
[1735143668333,23.776884,196.64,196.57,13.07063579]
[1735143668511,0.2588,196.63,196.57,13.07063579]
[1735143669255,0.2588,196.63,196.58,13.07063579]
[1735143669410,0.2588,196.64,196.58,13.07063579]
[1735143669918,13.07063579,196.61,196.5,1.332311]
[1735143670119,23.776884,196.65,196.5,1.332311]
[1735143670120,13.07063579,196.59,196.51,13.07063579]
[1735143670335,0.2588,196.58,196.51,13.07063579]
[1735143670630,13.32943579,196.64,196.56,13.07063579]
[1735143671030,36.84751979,196.63,196.56,13.07063579]
[1735143671232,24.035684,196.62,196.55,13.07063579]
[1735143671426,23.776884,196.6,196.53,13.07063579]
[1735143671603,0.2588,196.59,196.53,13.07063579]
[1735143671808,13.07063579,196.58,196.51,13.07063579]
[1735143672028,0.2588,196.57,196.5,14.40294679]
[1735143672607,37.10631979,196.57,196.5,1.332311]
[1735143673009,37.10631979,196.57,196.5,14.40294679]
[1735143673217,24.035684,196.57,196.51,13.07063579]
[1735143673508,24.035684,196.57,196.5,1.332311]
[1735143673509,37.10631979,196.57,196.5,1.332311]
[1735143674231,37.10631979,196.57,196.5,14.40294679]
[1735143674604,0.2588,196.57,196.54,13.07063579]
[1735143674914,13.07063579,196.62,196.55,13.07063579]
[1735143675122,0.2588,196.61,196.55,13.07063579]
[1735143675612,0.2588,196.61,196.56,13.07063579]
[1735143676019,13.32943579,196.62,196.55,13.07063579]
[1735143677236,0.2588,196.62,196.57,13.07063579]
[1735143677404,0.2588,196.62,196.58,13.07063579]
[1735143677606,0.2588,196.65,196.61,13.07063579]
[1735143677944,0.2588,196.68,196.64,13.07063579]
[1735143678106,0.2588,196.71,196.65,13.07063579]
[1735143678518,13.07063579,196.67,196.54,0.76273487]
[1735143678807,13.07063579,196.64,196.57,13.07063579]
[1735143679008,0.2588,196.63,196.57,13.07063579]
[1735143679208,24.035684,196.63,196.57,13.07063579]
[1735143679428,13.07063579,196.67,196.59,13.07063579]
[1735143679730,37.10631979,196.66,196.58,13.07063579]
[1735143681614,0.2588,196.66,196.6,13.07063579]
[1735143681821,0.2588,196.67,196.6,13.07063579]
[1735143682425,0.2588,196.67,196.62,13.07063579]
[1735143682735,13.32943579,196.69,196.61,13.07063579]
[1735143683115,13.32943579,196.69,196.62,13.07063579]
[1735143683329,0.2588,196.69,196.64,13.07063579]
[1735143683539,13.07063579,196.7,196.62,13.07063579]
[1735143683839,0.2588,196.69,196.62,13.07063579]
[1735143684132,13.07063579,196.68,196.62,13.07063579]
[1735143684335,0.2588,196.67,196.62,13.07063579]
[1735143684531,24.035684,196.67,196.62,13.07063579]
[1735143685017,24.035684,196.67,196.6,13.07063579]
[1735143685609,36.84751979,196.63,196.53,1.5919]
[1735143685828,23.776884,196.61,196.55,13.07063579]
[1735143686026,0.2588,196.6,196.55,13.07063579]
[1735143686411,0.2588,196.6,196.57,13.07063579]
[1735143686633,0.2588,196.65,196.59,13.07063579]
[1735143686932,0.2588,196.65,196.53,15.07501812]
[1735143686933,0.2588,196.68,196.61,13.07063579]
[1735143687123,13.07063579,196.67,196.61,13.07063579]
[1735143687325,0.2588,196.66,196.59,13.07063579]
[1735143688040,24.035684,196.66,196.59,13.07063579]
[1735143688336,0.2588,196.66,196.59,13.07063579]
[1735143689040,0.2588,196.66,196.61,13.07063579]
[1735143689245,24.035684,196.68,196.61,13.07063579]
[1735143691938,13.07063579,196.67,196.59,13.07063579]
[1735143692132,24.035684,196.66,196.59,13.07063579]
[1735143695150,13.07063579,196.63,196.55,13.07063579]
[1735143695364,24.035684,196.62,196.49,12.7231]
[1735143695643,23.776884,196.6,196.53,13.07063579]
[1735143695849,0.2588,196.59,196.53,13.07063579]
[1735143696761,0.2588,196.59,196.49,12.7231]
[1735143697042,1.7655,196.6,196.53,13.07063579]
[1735143697247,1.7655,196.6,196.55,13.07063579]
[1735143697924,0.2588,196.59,196.55,13.07063579]
[1735143699348,24.035684,196.62,196.55,13.07063579]
[1735143699928,0.2588,196.62,196.55,13.07063579]
[1735143701344,24.035684,196.62,196.55,13.07063579]
[1735143701523,23.535684,196.62,196.55,13.07063579]
[1735143702537,6.5778,196.63,196.57,13.07063579]
[1735143702849,6.5778,196.63,196.55,13.07063579]
[1735143703048,19.64843579,196.63,196.55,13.07063579]
[1735143703642,23.776884,196.62,196.55,13.07063579]
[1735143703847,19.64843579,196.63,196.55,13.07063579]
[1735143705555,23.776884,196.62,196.55,13.07063579]
[1735143708157,6.5778,196.63,196.56,13.07063579]
[1735143709233,1.6458,196.65,196.57,13.07063579]
[1735143709456,23.776884,196.64,196.57,13.07063579]
[1735143710842,13.07063579,196.63,196.55,13.07063579]
[1735143711352,13.07063579,196.63,196.57,13.07063579]
[1735143711765,14.71643579,196.65,196.57,13.07063579]
[1735143714281,14.71643579,196.65,196.58,13.07063579]
[1735143714638,19.15993579,196.67,196.59,13.07063579]
[1735143714843,13.07063579,196.66,196.59,13.07063579]
[1735143715161,13.07063579,196.65,196.58,13.07063579]
[1735143715362,13.07063579,196.66,196.58,13.07063579]
[1735143716166,8.45509809,196.66,196.58,8.45509809]
[1735143722068,23.776884,196.66,196.58,8.45509809]
[1735143722280,14.225,196.7,196.6,8.45509809]
[1735143722586,8.45509809,196.68,196.6,8.45509809]
[1735143722945,14.225,196.7,196.6,8.45509809]
[1735143723155,1.5148,196.7,196.64,8.45509809]
[1735143723744,7.84337047,196.75,196.66,8.45509809]
[1735143723948,16.29846856,196.75,196.68,8.45509809]
[1735143724149,7.84337047,196.75,196.69,8.45509809]
[1735143724386,8.45509809,196.78,196.71,8.45509809]
[1735143724794,7.84337047,196.79,196.72,8.45509809]
[1735143725070,7.84337047,196.79,196.77,8.45509809]
[1735143725252,7.84337047,196.79,196.78,8.45509809]
[1735143725453,7.84337047,196.84,196.78,8.45509809]
[1735143725654,7.84337047,196.84,196.79,8.45509809]
[1735143725877,7.84337047,196.84,196.8,8.45509809]
[1735143726182,8.45509809,196.87,196.79,8.45509809]
[1735143726360,7.6417,196.91,196.81,8.45509809]
[1735143726563,8.45509809,196.88,196.81,8.45509809]
[1735143727075,8.45509809,196.87,196.8,8.45509809]
[1735143727584,8.45509809,196.87,196.79,8.45509809]
[1735143728054,8.45509809,196.87,196.8,8.45509809]
[1735143728255,13.18220737,196.87,196.8,13.18220737]
[1735143728479,13.18220737,196.88,196.81,13.18220737]
[1735143728682,23.776884,196.9,196.81,13.18220737]
[1735143728865,13.18220737,196.88,196.81,13.18220737]
[1735143729263,13.18220737,196.9,196.75,2.46970005]
[1735143729468,12.695,196.93,196.84,13.18220737]
[1735143729469,13.18220737,196.92,196.84,13.18220737]
[1735143729782,13.18220737,196.92,196.85,13.18220737]
[1735143731079,12.17434436,196.92,196.79,7.24822413]
[1735143731278,12.17434436,196.92,196.85,13.18220737]
[1735143732157,23.776884,196.91,196.85,13.18220737]
[1735143735784,23.776884,196.91,196.79,6.4863]
[1735143735985,23.776884,196.91,196.84,13.18220737]
[1735143736881,23.776884,196.91,196.79,6.4863]
[1735143736882,33.76380737,196.96,196.88,13.18220737]
[1735143737085,6.2392,196.96,196.89,13.18220737]
[1735143737256,25.87490737,196.97,196.9,13.18220737]
[1735143737460,13.18220737,196.96,196.89,13.18220737]
[1735143737654,13.18220737,196.93,196.86,13.18220737]
[1735143738278,13.18220737,196.94,196.86,13.18220737]
[1735143738479,23.776884,196.94,196.87,13.18220737]
[1735143738777,36.95909137,196.94,196.87,13.18220737]
[1735143739499,13.18220737,196.92,196.85,13.18220737]
[1735143739713,23.776884,196.9,196.83,13.18220737]
[1735143740210,23.776884,196.9,196.85,13.18220737]
[1735143740501,23.776884,196.91,196.85,13.18220737]
[1735143740805,23.776884,196.92,196.85,13.18220737]
[1735143742689,36.95909137,196.89,196.82,13.18220737]
[1735143742885,36.95909137,196.85,196.78,13.18220737]
[1735143743084,23.776884,196.84,196.77,13.18220737]
[1735143743268,0.12549,196.83,196.69,1.5822]
[1735143743463,13.18220737,196.78,196.69,1.5822]
[1735143743661,23.776884,196.77,196.71,13.18220737]
[1735143743884,33.18220737,196.81,196.74,13.18220737]
[1735143744086,23.776884,196.8,196.75,13.18220737]
[1735143744599,36.95909137,196.8,196.73,13.18220737]
[1735143745579,23.776884,196.78,196.72,13.18220737]
[1735143746674,23.776884,196.79,196.72,13.18220737]
[1735143746871,23.776884,196.79,196.75,13.18220737]
[1735143747186,23.776884,196.8,196.75,13.18220737]
[1735143747878,23.776884,196.8,196.76,13.18220737]
[1735143748113,23.776884,196.8,196.75,13.18220737]
[1735143749305,23.776884,196.81,196.75,13.18220737]
[1735143749506,36.95909137,196.81,196.74,13.18220737]
[1735143750709,36.95909137,196.81,196.72,13.18220737]
[1735143751831,13.18220737,196.79,196.72,13.18220737]
[1735143752007,23.776884,196.76,196.7,13.18220737]
[1735143752511,23.776884,196.76,196.71,13.18220737]
[1735143752696,23.776884,196.77,196.71,13.18220737]
[1735143756213,23.776884,196.74,196.67,8.44732022]
[1735143758210,23.776884,196.74,196.67,13.19939383]
[1735143760100,23.776884,196.7,196.63,13.19939383]
[1735143760294,13.19939383,196.68,196.61,13.19939383]
[1735143760608,36.97627783,196.67,196.59,14.76979383]
[1735143760808,14.3312,196.73,196.66,13.19939383]
[1735143760809,27.53059383,196.73,196.66,13.19939383]
[1735143761017,23.776884,196.72,196.66,13.19939383]
[1735143763120,23.776884,196.72,196.64,13.19939383]
[1735143764113,23.776884,196.72,196.66,13.19939383]
[1735143765023,13.19939383,196.75,196.66,13.19939383]
[1735143766311,23.776884,196.72,196.66,13.19939383]
[1735143771225,23.776884,196.72,196.64,13.19939383]
[1735143772533,13.19939383,196.68,196.6,13.19939383]
[1735143772718,23.776884,196.67,196.6,13.19939383]
[1735143773635,23.776884,196.69,196.62,13.19939383]
[1735143773810,23.776884,196.69,196.64,13.19939383]
[1735143775620,23.776884,196.69,196.57,20.0]
[1735143775820,23.776884,196.69,196.62,13.19939383]
[1735143776427,23.776884,196.67,196.62,13.19939383]
[1735143776630,23.776884,196.67,196.6,13.19939383]
[1735143780114,23.776884,196.68,196.61,8.4525051]
[1735143782233,23.776884,196.68,196.54,1.5704]
[1735143782234,23.776884,196.68,196.63,8.4525051]
[1735143782433,2.06186239,196.73,196.65,8.4525051]
[1735143782755,8.4525051,196.72,196.65,8.4525051]
[1735143783538,23.776884,196.71,196.65,8.4525051]
[1735143783716,23.776884,196.71,196.59,20.0]
[1735143783920,32.2293891,196.69,196.61,8.4525051]
[1735143784255,23.776884,196.69,196.6,8.4525051]
[1735143784550,23.776884,196.66,196.6,8.4525051]
[1735143785251,23.776884,196.68,196.63,8.4525051]
[1735143785418,23.776884,196.68,196.56,33.8100204]
[1735143785419,23.776884,196.68,196.64,8.4525051]
[1735143785615,23.776884,196.68,196.56,34.57278292]
[1735143785818,32.2293891,196.69,196.62,8.4525051]
[1735143786659,32.2293891,196.67,196.6,8.4525051]
[1735143786832,8.4525051,196.66,196.59,8.4525051]
[1735143787159,23.776884,196.65,196.59,8.4525051]
[1735143787456,23.776884,196.63,196.54,1.5704]
[1735143787753,23.776884,196.63,196.56,8.4525051]
[1735143788133,32.2293891,196.63,196.55,8.4525051]
[1735143788350,32.2293891,196.63,196.56,8.4525051]
[1735143789655,23.776884,196.61,196.5,1.332311]
[1735143789950,23.776884,196.61,196.54,8.4525051]
[1735143790354,32.2293891,196.61,196.54,8.4525051]
[1735143790659,32.2293891,196.61,196.5,1.332311]
[1735143790840,32.2293891,196.61,196.54,8.4525051]
[1735143792454,32.2293891,196.61,196.5,1.332311]
[1735143792637,23.776884,196.58,196.52,8.4525051]
[1735143793033,23.776884,196.58,196.54,8.4525051]
[1735143793460,8.4525051,196.62,196.55,8.4525051]
[1735143793760,23.776884,196.61,196.55,8.4525051]
[1735143799030,32.2293891,196.59,196.52,8.4525051]
[1735143799636,23.776884,196.59,196.53,8.4525051]
[1735143800255,23.776884,196.59,196.52,8.4525051]
[1735143800839,23.776884,196.59,196.53,8.4525051]
[1735143802438,23.776884,196.59,196.52,8.4525051]
[1735143802861,32.2293891,196.59,196.52,8.4525051]
[1735143804165,23.776884,196.59,196.52,8.4525051]